fUST/lending_fUST_20250102
["ID","MTS","AMOUNT","RATE_DAILY","PERIOD"]
[347435302,1735807675886,-502.72,0.00019178,2]
[347435303,1735807675910,-500.0,0.00019178,2]
[347435304,1735807675937,-500.0,0.00019178,2]
[347435305,1735807675961,-1488.01,0.00019178,2]
[347435306,1735807675986,-1213.69,0.00019178,2]
[347435307,1735807676014,-999.46,0.00019178,2]
[347435308,1735807676040,-500.0,0.00019178,2]
[347435309,1735807676066,-500.0,0.00019178,2]
[347435310,1735807676090,-500.0,0.00019178,2]
[347435311,1735807676115,-500.0,0.00019178,2]
[347435312,1735807676139,-500.0,0.00019178,2]
[347435313,1735807676164,-500.0,0.00019178,2]
[347435314,1735807676190,-500.0,0.00019178,2]
[347435315,1735807676213,-500.0,0.00019178,2]
[347435316,1735807676237,-511.49,0.00019178,2]
[347435317,1735807676262,-808.31,0.00019178,2]
[347435318,1735807676288,-500.0,0.00019178,2]
[347435319,1735807676312,-856.59,0.00019178,2]
[347435320,1735807676340,-3998.44,0.00019178,2]
[347435321,1735807676365,-500.0,0.00019178,2]
[347435322,1735807676391,-1069.23,0.00019178,2]
[347435323,1735807676415,-500.0,0.00019178,2]
[347435324,1735807676441,-17080.13,0.00019178,2]
[347435325,1735807676467,-997.13,0.00019178,2]
[347435326,1735807676492,-500.0,0.00019178,2]
[347435327,1735807676516,-739.76,0.00019178,2]
[347435328,1735807676541,-500.0,0.00019178,2]
[347435329,1735807676565,-591.51,0.00019178,2]
[347435330,1735807676589,-229.2,0.00019178,2]
[347435331,1735807676614,-500.0,0.00019178,2]
[347435332,1735807676637,-500.0,0.00019178,2]
[347435333,1735807676661,-500.0,0.00019178,2]
[347435334,1735807676684,-500.0,0.00019178,2]
[347435335,1735807676710,-969.65,0.00019178,2]
[347435336,1735807676735,-500.0,0.00019178,2]
[347435337,1735807676758,-500.0,0.00019178,2]
[347435338,1735807676784,-154.45,0.00019178,2]
[347435339,1735807676807,-153.0,0.00019178,2]
[347435340,1735807676831,-153.0,0.00019178,2]
[347435341,1735807676854,-214.4778337,0.00019178,2]
[347435342,1735807676878,-153.6137553,0.00019178,2]
[347435343,1735807676902,-292.1980073,0.000192,2]
[347435344,1735807676926,-156.6394073,0.000192,2]
[347435345,1735807676954,-214.4778337,0.000192,2]
[347435346,1735807676979,-271.8397312,0.000192,2]
[347435347,1735807677003,-365.9354875,0.000192,2]
[347435348,1735807677030,-500.0,0.00019273,2]
[347435349,1735807677054,-50000.0,0.000193,5]
[347435350,1735807677093,-52661.06332909,0.000193,2]
[347435351,1735807677118,-3000.79926026,0.000194,2]
[347435352,1735807677143,-187.33310948,0.000194,2]
[347435353,1735807677169,-2237.98460425,0.00019407,2]
[347435354,1735807677194,-474.95,0.00019452,3]
[347435355,1735807677220,-810.52,0.00019452,2]
[347435356,1735807677245,-1724.18,0.00019452,3]
[347435357,1735807677271,-500.0,0.00019452,3]
[347435358,1735807677298,-500.0,0.00019452,3]
[347435359,1735807677324,-500.0,0.00019452,3]
[347435360,1735807677350,-500.0,0.00019452,3]
[347435361,1735807677376,-1706.5,0.00019452,3]
[347435362,1735807677561,-727.9,0.00019452,3]
[347435363,1735807677591,-500.0,0.00019452,3]
[347435364,1735807677617,-500.0,0.00019452,3]
[347435365,1735807677642,-500.0,0.00019452,3]
[347435366,1735807677667,-500.0,0.00019452,3]
[347435367,1735807677690,-500.0,0.00019452,3]
[347435368,1735807677715,-500.0,0.00019452,3]
[347435369,1735807677739,-500.0,0.00019452,3]
[347435370,1735807677763,-671.79,0.00019452,3]
[347435371,1735807677789,-500.0,0.00019452,3]
[347435372,1735807677814,-500.0,0.00019452,3]
[347435373,1735807677838,-500.0,0.00019452,3]
[347435374,1735807677863,-634.06,0.00019452,3]
[347435375,1735807677888,-500.0,0.00019452,3]
[347435376,1735807677915,-500.0,0.00019452,3]
[347435377,1735807677944,-500.0,0.00019452,3]
[347435378,1735807677968,-522.03,0.00019452,3]
[347435379,1735807677993,-2297.43,0.00019452,3]
[347435380,1735807678019,-500.0,0.00019452,3]
[347435381,1735807678047,-624.43,0.00019452,3]
[347435382,1735807678073,-500.0,0.00019452,3]
[347435383,1735807678098,-500.0,0.00019452,3]
[347435384,1735807678122,-500.0,0.00019452,3]
[347435385,1735807678146,-633.55236632,0.00019452,3]
[347435386,1735807678171,-500.0,0.00019452,3]
[347435387,1735807678194,-768.78,0.00019452,3]
[347435388,1735807678218,-656.56,0.00019452,3]
[347435389,1735807678243,-1252.81,0.00019452,3]
[347435390,1735807678267,-500.0,0.00019452,3]
[347435391,1735807678295,-500.0,0.00019452,3]
[347435392,1735807678321,-4701.9,0.00019452,3]
[347435393,1735807678346,-782.56,0.00019452,3]
[347435394,1735807678371,-500.0,0.00019452,3]
[347435395,1735807678395,-881.22,0.00019452,3]
[347435396,1735807678420,-500.0,0.00019452,3]
[347435397,1735807678445,-500.0,0.00019452,3]
[347435398,1735807678469,-525.49887405,0.00019452,3]
[347435399,1735807678495,-500.0,0.00019452,3]
[347435400,1735807678520,-618.47,0.00019452,3]
[347435401,1735807678545,-918.72,0.00019452,3]
[347435402,1735807678569,-500.0,0.00019452,3]
[347435403,1735807678594,-500.0,0.00019452,3]
[347435404,1735807678619,-500.0,0.00019452,3]
[347435405,1735807678644,-500.0,0.00019452,3]
[347435406,1735807678667,-500.0,0.00019452,3]
[347435407,1735807678692,-502.72,0.00019452,3]
[347435408,1735807678716,-500.0,0.00019452,3]
[347435409,1735807678740,-500.0,0.00019452,3]
[347435410,1735807678766,-1488.01,0.00019452,3]
[347435411,1735807678797,-1213.69,0.00019452,3]
[347435412,1735807678822,-999.46,0.00019452,3]
[347435413,1735807678847,-500.0,0.00019452,3]
[347435414,1735807678871,-500.0,0.00019452,3]
[347435415,1735807678897,-610.16368592,0.00019452,3]
[347435416,1735807678922,-500.0,0.00019452,3]
[347435417,1735807678950,-500.0,0.00019452,3]
[347435418,1735807678977,-509.67415915,0.00019452,3]
[347435419,1735807679002,-500.0,0.00019452,3]
[347435420,1735807679031,-500.0,0.00019452,3]
[347435421,1735807679056,-511.49,0.00019452,3]
[347435422,1735807679081,-808.31,0.00019452,3]
[347435423,1735807679106,-500.0,0.00019452,3]
[347435424,1735807679131,-856.59,0.00019452,3]
[347435425,1735807679157,-3998.44,0.00019452,3]
[347435426,1735807679182,-500.0,0.00019452,3]
[347435427,1735807679207,-1069.23,0.00019452,3]
[347435428,1735807679232,-500.0,0.00019452,3]
[347435429,1735807679261,-17080.13,0.00019452,3]
[347435430,1735807679288,-997.13,0.00019452,3]
[347435431,1735807679313,-500.0,0.00019452,3]
[347435432,1735807679339,-739.76,0.00019452,3]
[347435433,1735807679364,-500.0,0.00019452,3]
[347435434,1735807679389,-591.51,0.00019452,3]
[347435435,1735807679415,-500.0,0.00019452,3]
[347435436,1735807679440,-500.0,0.00019452,3]
[347435437,1735807679465,-500.0,0.00019452,3]
[347435438,1735807679490,-500.0,0.00019452,3]
[347435439,1735807679514,-969.65,0.00019452,3]
[347435440,1735807679540,-550.34168828,0.00019452,3]
[347435441,1735807679564,-500.0,0.00019452,2]
[347435442,1735807679589,-606.395,0.0001947,2]
[347435443,1735807679612,-453.66985486,0.00019499,2]
[347435444,1735807679638,-484.05432714,0.00019499,2]
[347435445,1735807679661,-482.34,0.000195,2]
[347435446,1735807679687,-1532398.46698749,0.000195,4]
[347435447,1735807683213,-717.35,0.00019178,2]
[347435448,1735807683243,-165.344865,0.00019178,2]
[347435449,1735807683270,-717.35,0.00019452,3]
[347435450,1735807683435,-300.0,0.00019499,2]
[347435451,1735807683466,-374798.45301251,0.000195,4]
[347435452,1735807683493,-2000.0,0.000195,3]
[347435453,1735807683519,-997.003317,0.000195,2]
[347435454,1735807683547,-997.003317,0.000195,2]
[347435455,1735807683968,2010.25,0.00019178,2]
[347435456,1735807684220,2010.25,0.00019452,3]
[347435457,1735807685533,434.1,0.000195,2]
[347435458,1735807692049,500.0,0.00019178,2]
[347435459,1735807692394,500.0,0.00019452,3]
[347435463,1735807820689,163.750157,0.00013973,2]
[347435496,1735807837831,-259.6097087,0.000189,2]
[347435498,1735807837840,-300.0,0.00019177,2]
[347435499,1735807837850,-500.0,0.00019178,2]
[347435501,1735807837859,-742.97,0.00019178,2]
[347435502,1735807837868,-566.93,0.00019178,2]
[347435503,1735807837877,-500.0,0.00019178,2]
[347435505,1735807837886,-1580.5,0.00019178,2]
[347435507,1735807837895,-500.0,0.00019178,2]
[347435508,1735807837904,-500.0,0.00019178,2]
[347435510,1735807837913,-4310.07,0.00019178,2]
[347435512,1735807837924,-1148.4,0.00019178,2]
[347435514,1735807837933,-500.0,0.00019178,2]
[347435516,1735807837942,-807.78,0.00019178,2]
[347435519,1735807837951,-500.0,0.00019178,2]
[347435521,1735807837960,-3665.23,0.00019178,2]
[347435522,1735807837969,-842.16,0.00019178,2]
[347435524,1735807837981,-317.23307352,0.00019178,2]
[347435526,1735807837991,-9175.58507878,0.00019178,2]
[347435536,1735807839973,-4759.83783712,0.00019178,2]
[347435537,1735807839988,-1721.3670841,0.00019178,2]
[347435538,1735807839998,-500.0,0.00019178,2]
[347435539,1735807840008,-500.0,0.00019178,2]
[347435540,1735807840018,-500.0,0.00019178,2]
[347435541,1735807840027,-500.0,0.00019178,2]
[347435542,1735807840036,-542.22,0.00019178,2]
[347435543,1735807840046,-500.0,0.00019178,2]
[347435544,1735807840055,-1564.29,0.00019178,2]
[347435546,1735807840065,-1364.01,0.00019178,2]
[347435548,1735807840074,-916.18,0.00019178,2]
[347435550,1735807840083,-500.0,0.00019452,3]
[347435551,1735807840092,-742.97,0.00019452,2]
[347435552,1735807840101,-566.93,0.00019452,3]
[347435553,1735807840110,-500.0,0.00019452,2]
[347435554,1735807840119,-1580.5,0.00019452,3]
[347435555,1735807840129,-500.0,0.00019452,3]
[347435556,1735807840138,-500.0,0.00019452,3]
[347435558,1735807840147,-4310.07,0.00019452,3]
[347435560,1735807840156,-1148.4,0.00019452,3]
[347435561,1735807840166,-500.0,0.00019452,3]
[347435562,1735807840175,-807.78,0.00019452,3]
[347435563,1735807840184,-500.0,0.00019452,3]
[347435564,1735807840192,-3665.23,0.00019452,3]
[347435565,1735807840202,-842.16,0.00019452,3]
[347435566,1735807840211,-15656.79,0.00019452,3]
[347435567,1735807840220,-500.0,0.00019452,3]
[347435568,1735807840230,-500.0,0.00019452,3]
[347435569,1735807840239,-500.0,0.00019452,3]
[347435570,1735807840248,-542.22,0.00019452,3]
[347435571,1735807840257,-500.0,0.00019452,3]
[347435572,1735807840266,-1564.29,0.00019452,3]
[347435573,1735807840275,-1364.01,0.00019452,3]
[347435574,1735807840284,-916.18,0.00019452,3]
[347435575,1735807840293,-1398.7403777,0.00019626,2]
[347435576,1735807840303,-619.0,0.000197,2]
[347435577,1735807840312,-500.0,0.00019725,3]
[347435578,1735807840321,-1112.55,0.00019725,3]
[347435579,1735807840330,-500.0,0.00019725,3]
[347435580,1735807840339,-740.95,0.00019725,3]
[347435581,1735807840348,-667.25,0.00019725,3]
[347435582,1735807840357,-500.0,0.00019725,3]
[347435583,1735807840366,-500.0,0.00019725,3]
[347435584,1735807840375,-500.0,0.00019726,3]
[347435585,1735807840384,-500.0,0.00019726,3]
[347435586,1735807840393,-500.0,0.00019726,3]
[347435587,1735807840403,-500.0,0.00019726,3]
[347435588,1735807840412,-671.79,0.00019726,3]
[347435589,1735807840421,-500.0,0.00019726,3]
[347435590,1735807840430,-500.0,0.00019726,3]
[347435591,1735807840440,-500.0,0.00019726,3]
[347435592,1735807840449,-634.06,0.00019726,3]
[347435593,1735807840458,-500.0,0.00019726,3]
[347435594,1735807840467,-500.0,0.00019726,3]
[347435595,1735807840476,-580.96358821,0.00019726,3]
[347435596,1735807840485,-522.03,0.00019726,3]
[347435597,1735807840494,-500.0,0.00019726,3]
[347435598,1735807840504,-624.43,0.00019726,3]
[347435599,1735807840513,-500.0,0.00019726,3]
[347435600,1735807840522,-500.0,0.00019726,3]
[347435601,1735807840531,-500.0,0.00019726,3]
[347435602,1735807840541,-500.0,0.00019726,3]
[347435603,1735807840550,-768.78,0.00019726,3]
[347435604,1735807840559,-500.0,0.00019726,3]
[347435605,1735807840568,-997.003317,0.00019726,2]
[347435606,1735807840576,-350.4777623,0.00019726,3]
[347435607,1735807840585,-997.003317,0.00019726,2]
[347435608,1735807840594,-500.0,0.00019726,3]
[347435609,1735807840604,-500.0,0.00019726,3]
[347435610,1735807840613,-500.0,0.00019726,3]
[347435611,1735807840622,-500.0,0.00019726,3]
[347435612,1735807840632,-502.72,0.00019726,3]
[347435613,1735807840641,-500.0,0.00019726,3]
[347435614,1735807840775,-500.0,0.00019726,3]
[347435615,1735807840785,-500.0,0.00019726,3]
[347435616,1735807840794,-500.0,0.00019726,3]
[347435617,1735807840803,-500.0,0.00019726,3]
[347435618,1735807840813,-511.49,0.00019726,3]
[347435619,1735807840822,-500.0,0.00019726,3]
[347435620,1735807840831,-856.59,0.00019726,3]
[347435621,1735807840840,-500.0,0.00019726,3]
[347435622,1735807840849,-1069.23,0.00019726,3]
[347435623,1735807840858,-500.0,0.00019726,3]
[347435624,1735807840867,-997.13,0.00019726,3]
[347435625,1735807840876,-739.76,0.00019726,3]
[347435626,1735807840885,-221.71773587,0.00019726,3]
[347435627,1735807840893,-500.0,0.00019726,3]
[347435628,1735807840902,-500.0,0.00019726,3]
[347435629,1735807840911,-500.0,0.00019726,3]
[347435630,1735807840920,-572.74517321,0.00019726,3]
[347435631,1735807840931,-969.65,0.00019726,3]
[347435632,1735807840940,-717.35,0.00019726,3]
[347435633,1735807840949,-2010.25,0.00019726,3]
[347435634,1735807840958,-500.0,0.00019726,3]
[347435635,1735807840967,-742.97,0.00019726,2]
[347435636,1735807840975,-500.0,0.00019726,3]
[347435637,1735807840989,-566.93,0.00019726,3]
[347435638,1735807840998,-500.0,0.00019726,2]
[347435639,1735807841007,-1580.5,0.00019726,3]
[347435640,1735807841016,-500.0,0.00019726,3]
[347435641,1735807841025,-500.0,0.00019726,3]
[347435642,1735807841034,-4310.07,0.00019726,3]
[347435643,1735807841044,-1148.4,0.00019726,3]
[347435644,1735807841053,-500.0,0.00019726,3]
[347435645,1735807841062,-807.78,0.00019726,3]
[347435646,1735807841082,-3665.23,0.00019726,3]
[347435647,1735807841092,-500.0,0.00019726,3]
[347435648,1735807841102,-842.16,0.00019726,3]
[347435649,1735807841112,-15656.79,0.00019726,3]
[347435650,1735807841122,-500.0,0.00019726,3]
[347435651,1735807841131,-500.0,0.00019726,3]
[347435652,1735807841141,-500.0,0.00019726,3]
[347435653,1735807841150,-542.22,0.00019726,3]
[347435654,1735807841159,-500.0,0.00019726,3]
[347435655,1735807841169,-1564.29,0.00019726,3]
[347435656,1735807841179,-1364.01,0.00019726,3]
[347435657,1735807841188,-916.18,0.00019726,3]
[347435658,1735807841198,-500.0,0.00019798,2]
[347435659,1735807841207,-153.0,0.000198,2]
[347435660,1735807841217,-153.0,0.000198,2]
[347435661,1735807841226,-153.6137553,0.000198,2]
[347435662,1735807841235,-214.4778337,0.000198,2]
[347435663,1735807841245,-153.0,0.000198,2]
[347435664,1735807841254,-183.8746764,0.000198,2]
[347435665,1735807841263,-153.0,0.000198,2]
[347435666,1735807841273,-153.6137553,0.000198,2]
[347435667,1735807841284,-3000.79926017,0.00019819,2]
[347435668,1735807841294,-152.65071266,0.00019886,2]
[347435669,1735807841303,-500.0,0.00019999,3]
[347435670,1735807841313,-1112.55,0.00019999,3]
[347435671,1735807841322,-500.0,0.00019999,3]
[347435672,1735807841332,-740.95,0.00019999,3]
[347435673,1735807841341,-667.25,0.00019999,3]
[347435674,1735807841351,-500.0,0.00019999,3]
[347435675,1735807841360,-500.0,0.00019999,3]
[347435676,1735807841370,-2000.0,0.0002,4]
[347435677,1735807841380,-500.0,0.0002,3]
[347435678,1735807841389,-500.0,0.0002,3]
[347435679,1735807841399,-500.0,0.0002,3]
[347435680,1735807841408,-500.0,0.0002,3]
[347435681,1735807841417,-671.79,0.0002,3]
[347435682,1735807841427,-500.0,0.0002,3]
[347435683,1735807841437,-500.0,0.0002,3]
[347435684,1735807841446,-500.0,0.0002,3]
[347435685,1735807841455,-634.06,0.0002,3]
[347435686,1735807841465,-500.0,0.0002,3]
[347435687,1735807841474,-500.0,0.0002,3]
[347435688,1735807841484,-522.03,0.0002,3]
[347435689,1735807841493,-500.0,0.0002,3]
[347435690,1735807841502,-624.43,0.0002,3]
[347435691,1735807841511,-500.0,0.0002,3]
[347435692,1735807841521,-500.0,0.0002,3]
[347435693,1735807841530,-500.0,0.0002,3]
[347435694,1735807841539,-500.0,0.0002,3]
[347435695,1735807841549,-768.78,0.0002,3]
[347435696,1735807841558,-500.0,0.0002,3]
[347435697,1735807841567,-997.003317,0.0002,2]
[347435698,1735807841577,-997.003317,0.0002,2]
[347435699,1735807841586,-500.0,0.0002,3]
[347435700,1735807841595,-500.0,0.0002,3]
[347435701,1735807841604,-500.0,0.0002,3]
[347435702,1735807841614,-500.0,0.0002,3]
[347435703,1735807841623,-502.72,0.0002,3]
[347435704,1735807841632,-500.0,0.0002,3]
[347435705,1735807841642,-500.0,0.0002,3]
[347435706,1735807841652,-500.0,0.0002,3]
[347435707,1735807841661,-500.0,0.0002,3]
[347435708,1735807841670,-500.0,0.0002,3]
[347435709,1735807841681,-511.49,0.0002,3]
[347435710,1735807841690,-500.0,0.0002,3]
[347435711,1735807841699,-856.59,0.0002,3]
[347435712,1735807841708,-573.53320866,0.0002,3]
[347435713,1735807841717,-1069.23,0.0002,3]
[347435714,1735807841727,-500.0,0.0002,3]
[347435715,1735807841736,-997.13,0.0002,3]
[347435716,1735807841745,-739.76,0.0002,3]
[347435717,1735807841754,-500.0,0.0002,3]
[347435718,1735807841764,-500.0,0.0002,3]
[347435719,1735807841773,-500.0,0.0002,3]
[347435720,1735807841782,-969.65,0.0002,3]
[347435721,1735807841792,-717.35,0.0002,3]
[347435722,1735807841801,-2010.25,0.0002,3]
[347435723,1735807841811,-500.0,0.0002,3]
[347435724,1735807841820,-153.0,0.0002,2]
[347435725,1735807841829,-153.0,0.0002,2]
[347435726,1735807841839,-153.6137553,0.0002,2]
[347435727,1735807841848,-214.4778337,0.0002,2]
[347435728,1735807841858,-742.97,0.0002,2]
[347435729,1735807841866,-346.99692767,0.0002,3]
[347435730,1735807841876,-566.93,0.0002,3]
[347435731,1735807841885,-500.0,0.0002,2]
[347435732,1735807841894,-1580.5,0.0002,3]
[347435733,1735807841903,-500.0,0.0002,3]
[347435734,1735807841912,-500.0,0.0002,3]
[347435735,1735807841921,-4310.07,0.0002,3]
[347435736,1735807841931,-1148.4,0.0002,3]
[347435737,1735807841941,-500.0,0.0002,3]
[347435738,1735807841950,-807.78,0.0002,3]
[347435739,1735807841960,-3665.23,0.0002,3]
[347435740,1735807841969,-500.0,0.0002,3]
[347435741,1735807841978,-842.16,0.0002,3]
[347435742,1735807841991,-15656.79,0.0002,3]
[347435743,1735807842000,-500.0,0.0002,3]
[347435744,1735807842009,-500.0,0.0002,3]
[347435745,1735807842018,-430.62891307,0.0002,3]
[347435746,1735807842027,-542.22,0.0002,3]
[347435747,1735807842036,-500.0,0.0002,3]
[347435748,1735807842045,-1564.29,0.0002,3]
[347435749,1735807842055,-1364.01,0.0002,3]
[347435750,1735807842064,-916.18,0.0002,3]
[347435751,1735807842073,-153.6137553,0.0002,2]
[347435752,1735807842082,-153.0,0.0002,2]
[347435753,1735807842091,-153.6137553,0.0002,2]
[347435754,1735807842100,-153.0,0.0002,2]
[347435755,1735807842109,-153.6137553,0.0002,2]
[347435756,1735807842119,-153.0,0.0002,2]
[347435757,1735807842127,-153.0,0.0002,2]
[347435758,1735807842137,-153.0,0.0002,2]
[347435759,1735807842146,-153.0,0.0002,2]
[347435760,1735807842154,-153.0,0.0002,2]
[347435761,1735807842163,-1398.74037765,0.00020133,2]
[347435762,1735807842172,-151.0,0.00020159,5]
[347435763,1735807842181,-3000.79926017,0.00020239,2]
[347435764,1735807842190,-500.0,0.00020273,3]
[347435765,1735807842204,-500.25549478,0.00020273,3]
[347435766,1735807842218,-500.0,0.00020273,3]
[347435767,1735807842231,-500.0,0.00020273,3]
[347435768,1735807842244,-671.79,0.00020273,3]
[347435769,1735807842258,-500.0,0.00020273,3]
[347435770,1735807842270,-500.0,0.00020273,3]
[347435771,1735807842282,-500.0,0.00020273,3]
[347435772,1735807842292,-634.06,0.00020273,3]
[347435773,1735807842302,-500.0,0.00020273,3]
[347435774,1735807842314,-500.0,0.00020273,3]
[347435775,1735807842326,-522.03,0.00020273,3]
[347435776,1735807842337,-500.0,0.00020273,3]
[347435777,1735807842348,-624.43,0.00020273,3]
[347435778,1735807842361,-500.0,0.00020273,3]
[347435779,1735807842372,-500.0,0.00020273,3]
[347435780,1735807842384,-500.0,0.00020273,3]
[347435781,1735807842395,-500.0,0.00020273,3]
[347435782,1735807842406,-768.78,0.00020273,3]
[347435783,1735807842418,-500.0,0.00020273,3]
[347435784,1735807842433,-997.003317,0.00020273,2]
[347435785,1735807842447,-997.003317,0.00020273,2]
[347435787,1735807842459,-500.0,0.00020273,3]
[347435788,1735807842470,-500.0,0.00020273,3]
[347435789,1735807842481,-295.2191998,0.00020273,3]
[347435790,1735807842491,-500.0,0.00020273,3]
[347435791,1735807842504,-502.72,0.00020273,3]
[347435792,1735807842514,-500.0,0.00020273,3]
[347435793,1735807842526,-500.0,0.00020273,3]
[347435794,1735807842538,-500.0,0.00020273,3]
[347435795,1735807842549,-500.0,0.00020273,3]
[347435796,1735807842560,-500.0,0.00020273,3]
[347435799,1735807842571,-511.49,0.00020273,3]
[347435802,1735807842581,-644.88901626,0.00020273,3]
[347435804,1735807842591,-856.59,0.00020273,3]
[347435806,1735807842601,-1069.23,0.00020273,3]
[347435809,1735807842611,-500.0,0.00020273,3]
[347435811,1735807842622,-997.13,0.00020273,3]
[347435813,1735807842632,-739.76,0.00020273,3]
[347435815,1735807842643,-500.0,0.00020273,3]
[347435817,1735807842654,-500.0,0.00020273,3]
[347435818,1735807842665,-500.0,0.00020273,3]
[347435819,1735807842677,-969.65,0.00020273,3]
[347435820,1735807842688,-717.35,0.00020273,3]
[347435821,1735807842698,-2010.25,0.00020273,3]
[347435822,1735807842709,-500.0,0.00020273,3]
[347435823,1735807842721,-742.97,0.00020273,2]
[347435824,1735807842732,-500.0,0.00020273,3]
[347435825,1735807842744,-566.93,0.00020273,3]
[347435826,1735807842755,-500.0,0.00020273,2]
[347435827,1735807842767,-1580.5,0.00020273,3]
[347435828,1735807842777,-500.0,0.00020273,3]
[347435829,1735807842787,-500.0,0.00020273,3]
[347435831,1735807842797,-499.0,0.00020273,2]
[347435832,1735807842807,-4310.07,0.00020273,3]
[347435833,1735807842817,-1148.4,0.00020273,3]
[347435834,1735807842828,-1112.55,0.00020273,3]
[347435835,1735807842839,-500.0,0.00020273,3]
[347435837,1735807842851,-807.78,0.00020273,3]
[347435838,1735807842862,-500.0,0.00020273,3]
[347435839,1735807842874,-3665.23,0.00020273,3]
[347435840,1735807842886,-500.0,0.00020273,3]
[347435841,1735807842896,-842.16,0.00020273,3]
[347435842,1735807842906,-740.95,0.00020273,3]
[347435843,1735807842916,-15656.79,0.00020273,3]
[347435844,1735807842928,-500.0,0.00020273,3]
[347435845,1735807842939,-500.0,0.00020273,3]
[347435846,1735807842949,-667.25,0.00020273,3]
[347435847,1735807842961,-542.22,0.00020273,3]
[347435848,1735807842972,-500.0,0.00020273,3]
[347435849,1735807842984,-500.0,0.00020273,3]
[347435850,1735807842994,-1364.01,0.00020273,3]
[347435851,1735807843004,-1564.29,0.00020273,3]
[347435852,1735807843014,-500.0,0.00020273,3]
[347435853,1735807843027,-250.5127044,0.00020295,2]
[347435854,1735807843039,-150.0,0.00020439,2]
[347435855,1735807843050,-2089.0,0.00020439,2]
[347435856,1735807843061,-534.0,0.00020439,2]
[347435857,1735807843071,-2322.0,0.00020439,2]
[347435858,1735807843082,-151.0,0.0002047,5]
[347435859,1735807843092,-394.0,0.00020471,2]
[347435860,1735807843105,-97328.68292192,0.000205,2]
[347435861,1735807843116,-500.0,0.000205,2]
[347435862,1735807843126,-997.003317,0.000205,2]
[347435863,1735807843137,-997.003317,0.000205,2]
[347435864,1735807843148,-399.557208,0.00020521,2]
[347435865,1735807843158,-173.947745,0.00020547,2]
[347435866,1735807843169,-173.947745,0.00020547,2]
[347435867,1735807843180,-500.0,0.00020547,3]
[347435868,1735807843191,-500.0,0.00020547,3]
[347435869,1735807843202,-500.0,0.00020547,3]
[347435870,1735807843214,-671.79,0.00020547,3]
[347435871,1735807843224,-500.0,0.00020547,3]
[347435872,1735807843234,-500.0,0.00020547,3]
[347435873,1735807843245,-500.0,0.00020547,3]
[347435874,1735807843255,-634.06,0.00020547,3]
[347435875,1735807843266,-500.0,0.00020547,3]
[347435876,1735807843276,-500.0,0.00020547,3]
[347435877,1735807843287,-522.03,0.00020547,3]
[347435878,1735807843297,-500.0,0.00020547,3]